{"text_format":"3","workbook":"xlsx","n_sheets":4,"sheets":["Dashboard","ATIVOS","PASSIVOS","cálculos"],"not_rendered":{"charts":4,"defined_names":4},"read":"whole","date_system":"1900"}

{"sheet":"Dashboard","index":0,"n_rows":16,"n_cols":8,"rows_kept":16}
[]
[null,"DASHBOARD",{"$nulls":4},"RESUMO DO VALOR LÍQUIDO"," "]
{"$rows_empty":8}
[null,{"$f":"PatrimónioLiquído","v":{"v":159600,"d":"159,600 €"}},null,{"$f":"TotalDosAtivos","v":{"v":380800,"d":"380,800 €"}},null,null,{"$f":"TotalDosPassivos","v":{"v":221200,"d":"221,200 €"}}]
[null,"VALOR LÍQUIDO",null,"TOTAL DE ATIVOS",null,null,"TOTAL DE PASSIVOS"]
[{"$nulls":3},"DINHEIRO",null,null,"NÃO SEGURO"]
[{"$nulls":3},"INVESTIMENTOS",null,null,"SEGURO"]
[{"$nulls":3},"REFORMA"]
[{"$nulls":3},"PESSOAL"]

{"sheet":"ATIVOS","index":1,"n_rows":24,"n_cols":10,"rows_kept":24,"merged":[[11,1,12,1],[13,1,14,1],[14,2,14,4],[14,6,14,8],[25,2,25,4],[25,6,25,8]]}
[]
[null,"ATIVOS",{"$nulls":5},"RESUMO DO VALOR LÍQUIDO",null," "]
[]
[null,null," ","DINHEIRO","VALOR",null," ","PESSOAL","VALOR"]
[{"$nulls":3},"DINHEIRO EM MÃOS",{"v":2000,"d":"2,000"},null,null,"RESIDÊNCIA PRINCIPAL",{"v":233000,"d":"233,000"}]
[{"$nulls":3},"VERIFICAÇÃO DE CONTAS",{"v":2500,"d":"2,500"},null,null,"SEGUNDA RESIDÊNCIA"]
[{"$nulls":3},"CONTAS POUPANÇA",{"v":4000,"d":"4,000"},null,null,"ARTIGOS COLECIONÁVEIS"]
[{"$nulls":3},"CONTAS DO MERCADO FINANCEIRO",{"v":3300,"d":"3,300"},null,null,"AUTOMÓVEIS",{"v":32000,"d":"32,000"}]
[{"$nulls":3},"CONTAS DO FUNDO DO MERCADO FINANCEIRO",{"v":7000,"d":"7,000"},null,null,"MOBILIÁRIO DOMÉSTICO",{"v":10000,"d":"10,000"}]
[{"$nulls":3},"CERTIFICADOS DE DEPÓSITO",{"$nulls":3},"PELES e JOIAS"]
[{"$nulls":3},"OBRIGAÇÃO DO TESOURO DOS E.U.A.",{"$nulls":3},"OUTROS ATIVOS",{"v":1500,"d":"1,500"}]
[null,{"$f":"TotalDosAtivos","v":{"v":380800,"d":"380,800 €"}},null,"VALOR MONETÁRIO DO SEGURO DE VIDA",{"v":24500,"d":"24,500"}]
[{"$nulls":3},"SUBTOTAL",{"$f":"SUBTOTAL(109,tblDinheiro[VALOR])","v":{"v":43300,"d":"43,300"}},null,null,"SUBTOTAL",{"$f":"SUBTOTAL(109,tblPessoal[VALOR])","v":{"v":276500,"d":"276,500"}}]
[null,"TOTAL DE ATIVOS"]
[]
[]
[null,null," ","INVESTIMENTOS","VALOR",null," ","REFORMA","VALOR"]
[{"$nulls":3},"AÇÕES",{"v":15000,"d":"15,000"},null,null,"PENSÃO"]
[{"$nulls":3},"TÍTULOS",{"$nulls":3},"CONTAS IRA"]
[{"$nulls":3},"INVESTIMENTOS EM FUNDOS MÚTUOS",{"$nulls":3},"CONTAS KEOGH"]
[{"$nulls":3},"JUROS DA SOCIEDADE",{"$nulls":3},"Plano de Reforma",{"v":46000,"d":"46,000"}]
[{"$nulls":3},"OUTROS INVESTIMENTOS",{"$nulls":3},"SET"]
[{"$nulls":7},"ESOP"]
[{"$nulls":3},"SUBTOTAL",{"$f":"SUBTOTAL(109,tblInvestimentos[VALOR])","v":{"v":15000,"d":"15,000"}},null,null,"SUBTOTAL",{"$f":"SUBTOTAL(109,tblAposentação[VALOR])","v":{"v":46000,"d":"46,000"}}]

{"sheet":"PASSIVOS","index":2,"n_rows":14,"n_cols":10,"rows_kept":14,"merged":[[11,1,12,1],[13,1,14,1]]}
[]
[null,"PASSIVOS",{"$nulls":5},"RESUMO DO VALOR LÍQUIDO",null," "]
[]
[null,null," ","NÃO SEGURO","DÍVIDA",null," ","SEGURO","DÍVIDA"]
[{"$nulls":3},"CARTÕES DE CRÉDITO",{"v":1200,"d":"1,200"},null,null,"Empréstimos Automóveis",{"v":14500,"d":"14,500"}]
[{"$nulls":3},"CONTAS DE DESPESAS",{"v":3000,"d":"3,000"},null,null,"Empréstimos para Veículos Recreativos"]
[{"$nulls":3},"EMPRÉSTIMOS UNIVERSITÁRIOS",{"v":17500,"d":"17,500"},null,null,"Empréstimos para Eletrodomésticos"]
[{"$nulls":3},"PENSÃO DE ALIMENTOS (CÔNJUGE)",{"$nulls":3},"Hipotecas de Casas",{"v":144000,"d":"144,000"}]
[{"$nulls":3},"PENSÃO DE ALIMENTOS (FILHOS)",{"$nulls":3},"Crédito de Habitação",{"v":21000,"d":"21,000"}]
[{"$nulls":3},"IMPOSTO DE PASSIVOS",{"v":8000,"d":"8,000"},null,null,"Outros Empréstimos"]
[{"$nulls":3},"OUTROS",{"v":6000,"d":"6,000"},null,null,"Imposto de Passivos",{"v":4000,"d":"4,000"}]
[null,{"$f":"TotalDosPassivos","v":{"v":221200,"d":"221,200 €"}},{"$nulls":5},"Outros",{"v":2000,"d":"2,000"}]
[{"$nulls":3},"SUBTOTAL",{"$f":"SUBTOTAL(109,tblNãoAssegurado[DÍVIDA])","v":{"v":35700,"d":"35,700"}},null,null,"SUBTOTAL",{"$f":"SUBTOTAL(109,tblAssegurado[DÍVIDA])","v":{"v":185500,"d":"185,500"}}]
[null,"TOTAL DE ATIVOS"]

{"sheet":"cálculos","index":3,"n_rows":23,"n_cols":3,"rows_kept":23,"hidden":true}
[]
[null,"*** Esta folha deve permanecer oculta ***"]
{"$rows_empty":8}
[null,{"$f":"tblDinheiro[[#Headers],[DINHEIRO]]","v":"DINHEIRO"},{"$f":"SUM(tblDinheiro[VALOR])","v":{"v":43300,"d":"43,300 €"}}]
[null,{"$f":"tblInvestimentos[[#Headers],[INVESTIMENTOS]]","v":"INVESTIMENTOS"},{"$f":"SUM(tblInvestimentos[VALOR])","v":{"v":15000,"d":"15,000 €"}}]
[null,{"$f":"tblAposentação[[#Headers],[REFORMA]]","v":"REFORMA"},{"$f":"SUM(tblAposentação[VALOR])","v":{"v":46000,"d":"46,000 €"}}]
[null,{"$f":"tblPessoal[[#Headers],[PESSOAL]]","v":"PESSOAL"},{"$f":"SUM(tblPessoal[VALOR])","v":{"v":276500,"d":"276,500 €"}}]
[null,"Total de Ativos",{"$f":"SUM(tblDinheiro[VALOR],tblInvestimentos[VALOR],tblAposentação[VALOR],tblPessoal[VALOR])","v":{"v":380800,"d":"380,800 €"}}]
[]
[]
[null,{"$f":"tblNãoAssegurado[[#Headers],[NÃO SEGURO]]","v":"NÃO SEGURO"},{"$f":"SUM(tblNãoAssegurado[DÍVIDA])","v":{"v":35700,"d":"35,700 €"}}]
[null,{"$f":"tblAssegurado[[#Headers],[SEGURO]]","v":"SEGURO"},{"$f":"SUM(tblAssegurado[DÍVIDA])","v":{"v":185500,"d":"185,500 €"}}]
[null,"Total de Passivos",{"$f":"SUM(tblNãoAssegurado[],tblAssegurado[DÍVIDA])","v":{"v":221200,"d":"221,200 €"}}]
[]
[]
[null,"Valor da Rede",{"$f":"C15-C20","v":{"v":159600,"d":"159,600 €"}}]